[Event "*** SCC Grand Prix: Titled Tuesday Blitz"]
[Site "Chess.com"]
[Date "2020.07.07"]
[Round "5"]
[White "Fandorine"]
[Black "DarkAlekhine"]
[Result "1-0"]
[WhiteElo "2877"]
[BlackElo "2628"]
[TimeControl "180+1"]
[EndTime "10:56:04 PDT"]
[Termination "Fandorine won by checkmate"]

1. e4 {[%clk 0:03:00.9]} 1... e6 {[%clk 0:03:00.2]} 2. d4 {[%clk 0:03:00.1]}
2... d5 {[%clk 0:03:00.7]} 3. Nc3 {[%clk 0:03:00.8]} 3... Bb4 {[%clk 0:03:00.9]}
4. e5 {[%clk 0:03:00.9]} 4... c5 {[%clk 0:03:01.5]} 5. a3 {[%clk 0:03:01.2]}
5... Ba5 {[%clk 0:02:59.5]} 6. b4 {[%clk 0:02:59.4]} 6... cxd4 {[%clk
0:02:59.9]} 7. Nb5 {[%clk 0:02:59.5]} 7... Bc7 {[%clk 0:02:59.4]} 8. f4 {[%clk
0:02:59.6]} 8... Ne7 {[%clk 0:02:58.1]} 9. Nf3 {[%clk 0:02:58]} 9... Bd7 {[%clk
0:02:58.4]} 10. Nxc7+ {[%clk 0:02:57]} 10... Qxc7 {[%clk 0:02:59.3]} 11. Bd3
{[%clk 0:02:56.9]} 11... Ba4 {[%clk 0:02:58.1]} 12. O-O {[%clk 0:02:55.6]} 12...
a6 {[%clk 0:02:58.5]} 13. Kh1 {[%clk 0:02:50.6]} 13... Nbc6 {[%clk 0:02:51.5]}
14. Bb2 {[%clk 0:02:45.3]} 14... Bb5 {[%clk 0:02:43.9]} 15. Nxd4 {[%clk
0:02:32.5]} 15... Nxd4 {[%clk 0:02:39.8]} 16. Bxd4 {[%clk 0:02:32.3]} 16... Bxd3
{[%clk 0:02:24.7]} 17. cxd3 {[%clk 0:02:33.2]} 17... O-O {[%clk 0:02:22]} 18.
Bc5 {[%clk 0:02:13.1]} 18... b6 {[%clk 0:02:14.4]} 19. Bf2 {[%clk 0:02:07]}
19... Rfc8 {[%clk 0:02:09.3]} 20. Rc1 {[%clk 0:02:03.3]} 20... Qb7 {[%clk
0:01:59.1]} 21. Qf3 {[%clk 0:02:01.2]} 21... Rxc1 {[%clk 0:01:25.5]} 22. Rxc1
{[%clk 0:02:02.1]} 22... Rc8 {[%clk 0:01:25.6]} 23. Rxc8+ {[%clk 0:01:54.4]}
23... Qxc8 {[%clk 0:01:25.6]} 24. Qd1 {[%clk 0:01:19.7]} 24... Qc6 {[%clk
0:01:19.1]} 25. Kg1 {[%clk 0:01:16.3]} 25... g6 {[%clk 0:01:06.6]} 26. g4 {[%clk
0:01:13.4]} 26... Qc3 {[%clk 0:00:40.2]} 27. Bxb6 {[%clk 0:01:12.5]} 27... Qxa3
{[%clk 0:00:40.5]} 28. Bc5 {[%clk 0:01:12.7]} 28... Nc6 {[%clk 0:00:40.9]} 29.
f5 {[%clk 0:00:33.3]} 29... Qb2 {[%clk 0:00:11.5]} 30. fxe6 {[%clk 0:00:19.8]}
30... Qxe5 {[%clk 0:00:11.5]} 31. exf7+ {[%clk 0:00:20.1]} 31... Kxf7 {[%clk
0:00:12.4]} 32. Qf3+ {[%clk 0:00:20.6]} 32... Ke6 {[%clk 0:00:11.3]} 33. h3
{[%clk 0:00:20.8]} 33... Qf6 {[%clk 0:00:08]} 34. Qe2+ {[%clk 0:00:12.7]} 34...
Qe5 {[%clk 0:00:08.1]} 35. Qf2 {[%clk 0:00:10.5]} 35... Qf6 {[%clk 0:00:08.3]}
36. Qa2 {[%clk 0:00:08.5]} 36... Qf3 {[%clk 0:00:06.2]} 37. Qxa6 {[%clk
0:00:08.2]} 37... Qg3+ {[%clk 0:00:06.1]} 38. Kf1 {[%clk 0:00:08.7]} 38... Qxh3+
{[%clk 0:00:05.6]} 39. Ke1 {[%clk 0:00:09.2]} 39... Qg2 {[%clk 0:00:05.2]} 40.
Qxc6+ {[%clk 0:00:08.1]} 40... Ke5 {[%clk 0:00:05.3]} 41. Qd6# {[%clk
0:00:08.3]} 1-0

[Event "*** SCC Grand Prix: Titled Tuesday Blitz"]
[Site "Chess.com"]
[Date "2020.07.07"]
[Round "5"]
[White "ZiggyStardust64"]
[Black "jonaszmb"]
[Result "1-0"]
[WhiteElo "2679"]
[BlackElo "2474"]
[TimeControl "180+1"]
[EndTime "10:56:04 PDT"]
[Termination "ZiggyStardust64 won by resignation"]

1. e4 {[%clk 0:03:00.9]} 1... c5 {[%clk 0:03:00.1]} 2. Nf3 {[%clk 0:03:00.3]}
2... Nc6 {[%clk 0:03:00.6]} 3. d4 {[%clk 0:02:59.1]} 3... cxd4 {[%clk
0:03:01.5]} 4. Nxd4 {[%clk 0:02:59.5]} 4... e5 {[%clk 0:03:02.2]} 5. Nb5 {[%clk
0:02:59]} 5... a6 {[%clk 0:03:02.7]} 6. Nd6+ {[%clk 0:02:58]} 6... Bxd6 {[%clk
0:03:03.3]} 7. Qxd6 {[%clk 0:02:58.5]} 7... Qf6 {[%clk 0:03:03.9]} 8. Qc7 {[%clk
0:02:57.1]} 8... Qe7 {[%clk 0:03:03.7]} 9. Nc3 {[%clk 0:02:49.5]} 9... Nb4
{[%clk 0:03:03.8]} 10. Bd3 {[%clk 0:02:46.2]} 10... d5 {[%clk 0:03:03.6]} 11.
Qxe7+ {[%clk 0:02:35.4]} 11... Nxe7 {[%clk 0:03:04.5]} 12. O-O {[%clk
0:02:27.9]} 12... d4 {[%clk 0:02:53.9]} 13. Ne2 {[%clk 0:02:26.3]} 13... Nxd3
{[%clk 0:02:48.2]} 14. cxd3 {[%clk 0:02:25.9]} 14... Bd7 {[%clk 0:02:31.1]} 15.
f4 {[%clk 0:02:25.4]} 15... f6 {[%clk 0:02:28.9]} 16. Bd2 {[%clk 0:02:25.5]}
16... Bb5 {[%clk 0:02:24.4]} 17. Nc1 {[%clk 0:02:24.5]} 17... Rc8 {[%clk
0:02:23.2]} 18. a4 {[%clk 0:02:17.6]} 18... Bd7 {[%clk 0:02:19.4]} 19. Bb4
{[%clk 0:02:05.7]} 19... Rc2 {[%clk 0:01:51.1]} 20. Rf2 {[%clk 0:01:39.9]} 20...
Rxf2 {[%clk 0:01:42.4]} 21. Kxf2 {[%clk 0:01:40.8]} 21... Kf7 {[%clk 0:01:34.8]}
22. Ne2 {[%clk 0:01:37.6]} 22... Rc8 {[%clk 0:01:34.4]} 23. b3 {[%clk
0:01:06.3]} 23... Be6 {[%clk 0:01:29.8]} 24. fxe5 {[%clk 0:01:06.2]} 24... fxe5
{[%clk 0:01:26.9]} 25. Rc1 {[%clk 0:01:06]} 25... Nc6 {[%clk 0:01:20.2]} 26. Bd6
{[%clk 0:01:05]} 26... Rd8 {[%clk 0:01:18.4]} 27. Bc7 {[%clk 0:00:59.4]} 27...
Rd7 {[%clk 0:01:17.9]} 28. Bb6 {[%clk 0:00:59.6]} 28... Bxb3 {[%clk 0:01:17.1]}
29. Ra1 {[%clk 0:00:48.8]} 29... Nb4 {[%clk 0:01:13.7]} 30. Nc1 {[%clk
0:00:48.2]} 30... Bc2 {[%clk 0:01:13.4]} 31. Ke2 {[%clk 0:00:47.2]} 31... Ke6
{[%clk 0:00:43.3]} 32. Bc5 {[%clk 0:00:35.3]} 32... a5 {[%clk 0:00:22.4]} 33.
Kd2 {[%clk 0:00:23.5]} 33... Rc7 {[%clk 0:00:17.4]} 34. Bb6 {[%clk 0:00:21.6]}
34... Rf7 {[%clk 0:00:17.4]} 35. Ke2 {[%clk 0:00:16.1]} 35... g5 {[%clk
0:00:05.2]} 36. Bxa5 {[%clk 0:00:16.1]} 36... Nc6 {[%clk 0:00:04.3]} 37. Bd2
{[%clk 0:00:16.6]} 37... g4 {[%clk 0:00:01.7]} 38. Ra2 {[%clk 0:00:15.9]} 38...
Nb4 {[%clk 0:00:01.2]} 39. Bxb4 {[%clk 0:00:15.4]} 39... Bb1 {[%clk 0:00:02.1]}
40. Rb2 {[%clk 0:00:15.3]} 40... g3 {[%clk 0:00:02.5]} 41. hxg3 {[%clk 0:00:15]}
41... Rg7 {[%clk 0:00:02.9]} 42. Rxb1 {[%clk 0:00:15]} 42... Rxg3 {[%clk
0:00:02.9]} 43. Kf2 {[%clk 0:00:15.1]} 43... Re3 {[%clk 0:00:03]} 44. Bd2 {[%clk
0:00:14.6]} 1-0

[Event "*** SCC Grand Prix: Titled Tuesday Blitz"]
[Site "Chess.com"]
[Date "2020.07.07"]
[Round "5"]
[White "tk22h"]
[Black "Siniauski"]
[Result "1/2-1/2"]
[WhiteElo "2289"]
[BlackElo "2460"]
[TimeControl "180+1"]
[EndTime "10:56:04 PDT"]
[Termination "Game drawn - insufficient material"]

1. c4 {[%clk 0:03:00.9]} 1... Nf6 {[%clk 0:02:58.2]} 2. Nc3 {[%clk 0:03:00]}
2... e5 {[%clk 0:02:56.4]} 3. Nf3 {[%clk 0:02:59.6]} 3... Nc6 {[%clk 0:02:55.9]}
4. g3 {[%clk 0:02:59.1]} 4... d5 {[%clk 0:02:55.9]} 5. cxd5 {[%clk 0:02:59]}
5... Nxd5 {[%clk 0:02:56.8]} 6. Bg2 {[%clk 0:02:59.1]} 6... Nb6 {[%clk
0:02:56.7]} 7. O-O {[%clk 0:02:59.1]} 7... Be7 {[%clk 0:02:55.5]} 8. b3 {[%clk
0:02:59.2]} 8... O-O {[%clk 0:02:50.1]} 9. Bb2 {[%clk 0:02:59.5]} 9... Be6
{[%clk 0:02:48.1]} 10. Rc1 {[%clk 0:02:58.9]} 10... f5 {[%clk 0:02:38.7]} 11. d3
{[%clk 0:02:58.1]} 11... Bf6 {[%clk 0:02:36.4]} 12. e4 {[%clk 0:02:57.4]} 12...
Nb4 {[%clk 0:02:13]} 13. exf5 {[%clk 0:02:51.7]} 13... Bxf5 {[%clk 0:02:10.8]}
14. Ne4 {[%clk 0:02:51.5]} 14... Nxd3 {[%clk 0:01:54]} 15. Nxf6+ {[%clk
0:02:49.9]} 15... Qxf6 {[%clk 0:01:51.5]} 16. Ba3 {[%clk 0:02:49.3]} 16... Rf7
{[%clk 0:01:15.7]} 17. Rc3 {[%clk 0:02:42.6]} 17... e4 {[%clk 0:01:10.7]} 18.
Nh4 {[%clk 0:02:18.5]} 18... Qxc3 {[%clk 0:01:03.5]} 19. Nxf5 {[%clk 0:02:17.7]}
19... Rxf5 {[%clk 0:00:49.9]} 20. Bxe4 {[%clk 0:02:17]} 20... Re5 {[%clk
0:00:22.3]} 21. Qxd3 {[%clk 0:02:13.8]} 21... Qxd3 {[%clk 0:00:22.5]} 22. Bxd3
{[%clk 0:02:14]} 22... Rd8 {[%clk 0:00:20.9]} 23. Bb1 {[%clk 0:01:46.5]} 23...
Re2 {[%clk 0:00:20.9]} 24. Bc1 {[%clk 0:01:43]} 24... Nd5 {[%clk 0:00:15]} 25.
Kg2 {[%clk 0:01:40.5]} 25... Nc3 {[%clk 0:00:12.2]} 26. Bf5 {[%clk 0:01:39.7]}
26... Nxa2 {[%clk 0:00:10.8]} 27. Be3 {[%clk 0:01:39.3]} 27... Rf8 {[%clk
0:00:09.4]} 28. Be6+ {[%clk 0:01:37.6]} 28... Kh8 {[%clk 0:00:10]} 29. Bc4
{[%clk 0:01:37.6]} 29... Rb2 {[%clk 0:00:08.7]} 30. Rd1 {[%clk 0:01:33.4]} 30...
Nc3 {[%clk 0:00:06.9]} 31. Rd7 {[%clk 0:01:32.1]} 31... Ne4 {[%clk 0:00:03.8]}
32. Bd4 {[%clk 0:01:31.7]} 32... Rfxf2+ {[%clk 0:00:01.6]} 33. Bxf2 {[%clk
0:01:29.7]} 33... Rxf2+ {[%clk 0:00:02.5]} 34. Kg1 {[%clk 0:01:29.9]} 34... Rf8
{[%clk 0:00:02.2]} 35. Rxc7 {[%clk 0:01:29.7]} 35... Rb8 {[%clk 0:00:02.4]} 36.
Bd5 {[%clk 0:01:28.3]} 36... Nd6 {[%clk 0:00:02.5]} 37. Rd7 {[%clk 0:01:27.8]}
37... Nb5 {[%clk 0:00:02.6]} 38. Bxb7 {[%clk 0:01:23.1]} 38... h6 {[%clk
0:00:02.3]} 39. Bd5 {[%clk 0:01:20.9]} 39... Nc3 {[%clk 0:00:02.1]} 40. Bc4
{[%clk 0:01:20.2]} 40... a5 {[%clk 0:00:01.5]} 41. Ra7 {[%clk 0:01:20]} 41... a4
{[%clk 0:00:01.3]} 42. bxa4 {[%clk 0:01:19.3]} 42... Rb1+ {[%clk 0:00:02.2]} 43.
Kg2 {[%clk 0:01:18.8]} 43... Rb2+ {[%clk 0:00:02]} 44. Kf3 {[%clk 0:01:18.8]}
44... Nb1 {[%clk 0:00:02.3]} 45. Ra8+ {[%clk 0:01:16.7]} 45... Kh7 {[%clk
0:00:02.1]} 46. Bd3+ {[%clk 0:01:16.7]} 46... g6 {[%clk 0:00:02.4]} 47. Ra7+
{[%clk 0:01:16.7]} 47... Kg8 {[%clk 0:00:02.3]} 48. Bxg6 {[%clk 0:01:16.8]}
48... Rb3+ {[%clk 0:00:02]} 49. Kf4 {[%clk 0:01:15.4]} 49... Rb4+ {[%clk
0:00:02.3]} 50. Ke5 {[%clk 0:01:14.6]} 50... Nc3 {[%clk 0:00:02.1]} 51. Bf5
{[%clk 0:01:12.4]} 51... Kf8 {[%clk 0:00:01.7]} 52. Kf6 {[%clk 0:01:12.3]} 52...
Nd5+ {[%clk 0:00:01.6]} 53. Ke5 {[%clk 0:01:11.7]} 53... Nc3 {[%clk 0:00:01.8]}
54. Be6 {[%clk 0:01:11]} 54... Rxa4 {[%clk 0:00:01.1]} 55. Rxa4 {[%clk
0:01:07.5]} 55... Nxa4 {[%clk 0:00:02]} 56. Kf6 {[%clk 0:01:07.6]} 56... Nc5
{[%clk 0:00:02.7]} 57. Bf5 {[%clk 0:01:06.9]} 57... Kg8 {[%clk 0:00:02.6]} 58.
Kg6 {[%clk 0:01:06.8]} 58... Nb7 {[%clk 0:00:02.5]} 59. Kxh6 {[%clk 0:01:06.1]}
59... Nd6 {[%clk 0:00:03.2]} 60. Be6+ {[%clk 0:01:03.4]} 60... Kh8 {[%clk
0:00:03.7]} 61. Kg5 {[%clk 0:01:02.2]} 61... Kg7 {[%clk 0:00:03.7]} 62. h4
{[%clk 0:01:01.3]} 62... Ne4+ {[%clk 0:00:03.8]} 63. Kf4 {[%clk 0:01:01.4]}
63... Nxg3 {[%clk 0:00:04.1]} 64. Kxg3 {[%clk 0:01:01.6]} 64... Kh8 {[%clk
0:00:04.4]} 65. h5 {[%clk 0:01:01.9]} 65... Kg7 {[%clk 0:00:04.9]} 66. h6+
{[%clk 0:01:02.2]} 66... Kxh6 {[%clk 0:00:05.3]} 1/2-1/2

[Event "*** SCC Grand Prix: Titled Tuesday Blitz"]
[Site "Chess.com"]
[Date "2020.07.07"]
[Round "5"]
[White "peixe64"]
[Black "Nafania1"]
[Result "0-1"]
[WhiteElo "2319"]
[BlackElo "2453"]
[TimeControl "180+1"]
[EndTime "10:56:07 PDT"]
[Termination "Nafania1 won by resignation"]

1. e4 {[%clk 0:03:00.9]} 1... e6 {[%clk 0:02:59.6]} 2. d4 {[%clk 0:03:00.4]}
2... d5 {[%clk 0:02:59.5]} 3. Nc3 {[%clk 0:03:01]} 3... h6 {[%clk 0:02:59]} 4.
Nf3 {[%clk 0:02:55.3]} 4... Nf6 {[%clk 0:02:58.2]} 5. e5 {[%clk 0:02:52]} 5...
Ne4 {[%clk 0:02:58]} 6. Bd3 {[%clk 0:02:48.2]} 6... Bb4 {[%clk 0:02:57.4]} 7.
O-O {[%clk 0:02:38]} 7... Nxc3 {[%clk 0:02:55.1]} 8. bxc3 {[%clk 0:02:37.1]}
8... Bxc3 {[%clk 0:02:55.5]} 9. Rb1 {[%clk 0:02:34.8]} 9... Nc6 {[%clk
0:02:55.8]} 10. Ba3 {[%clk 0:02:10.7]} 10... a5 {[%clk 0:02:55.2]} 11. Bb5
{[%clk 0:02:07.9]} 11... Bd7 {[%clk 0:02:54.8]} 12. Qd3 {[%clk 0:01:49.7]} 12...
Bb4 {[%clk 0:02:53.5]} 13. Bc1 {[%clk 0:01:47.7]} 13... O-O {[%clk 0:02:49.2]}
14. c3 {[%clk 0:01:47.3]} 14... Be7 {[%clk 0:02:48.3]} 15. Ba4 {[%clk
0:01:37.7]} 15... Nb4 {[%clk 0:02:48.5]} 16. Rxb4 {[%clk 0:01:30.7]} 16... axb4
{[%clk 0:02:48.5]} 17. Bc2 {[%clk 0:01:30]} 17... g6 {[%clk 0:02:47.4]} 18. Bxh6
{[%clk 0:01:27.1]} 18... Ra3 {[%clk 0:02:44.4]} 19. h4 {[%clk 0:01:10.9]} 19...
Rxc3 {[%clk 0:02:44.2]} 20. Qd2 {[%clk 0:01:06.5]} 20... Qa8 {[%clk 0:02:25.9]}
21. Bb1 {[%clk 0:00:56.7]} 21... Qa3 {[%clk 0:02:12.6]} 22. h5 {[%clk
0:00:49.2]} 22... Be8 {[%clk 0:02:11.4]} 23. Qf4 {[%clk 0:00:42.8]} 23... b3
{[%clk 0:01:58.8]} 24. axb3 {[%clk 0:00:41.1]} 24... Rxb3 {[%clk 0:01:55.7]} 25.
Ng5 {[%clk 0:00:26.2]} 25... Qa6 {[%clk 0:01:21.1]} 26. hxg6 {[%clk 0:00:23.1]}
26... fxg6 {[%clk 0:01:20.4]} 27. Bxf8 {[%clk 0:00:22.7]} 27... Bxf8 {[%clk
0:01:20.5]} 28. Qh4 {[%clk 0:00:21]} 28... Bg7 {[%clk 0:01:20.4]} 29. Qh7+
{[%clk 0:00:18.9]} 29... Kf8 {[%clk 0:01:20.6]} 30. Bxg6 {[%clk 0:00:19.8]}
30... Qc6 {[%clk 0:01:15]} 31. Bxe8 {[%clk 0:00:19.4]} 31... Qxe8 {[%clk
0:01:15]} 32. f4 {[%clk 0:00:19.8]} 32... Rg3 {[%clk 0:01:06.3]} 33. Nh3 {[%clk
0:00:12.8]} 33... Qf7 {[%clk 0:01:04.5]} 34. f5 {[%clk 0:00:12.5]} 34... Ke8
{[%clk 0:01:00.9]} 35. fxe6 {[%clk 0:00:12.5]} 35... Qxe6 {[%clk 0:01:01.2]} 36.
Nf4 {[%clk 0:00:12.7]} 36... Qf7 {[%clk 0:00:56.1]} 37. Nh5 {[%clk 0:00:12.6]}
37... Qg6 {[%clk 0:00:47.3]} 38. Qg8+ {[%clk 0:00:09.2]} 38... Ke7 {[%clk
0:00:46.4]} 39. Nxg3 {[%clk 0:00:09.8]} 39... c6 {[%clk 0:00:40.8]} 40. Nf5+
{[%clk 0:00:09.1]} 40... Kd7 {[%clk 0:00:41.1]} 41. Qb8 {[%clk 0:00:09.5]} 41...
Bh6 {[%clk 0:00:37.5]} 42. Qxb7+ {[%clk 0:00:09.9]} 42... Kd8 {[%clk 0:00:37.6]}
43. Qb8+ {[%clk 0:00:09.7]} 43... Kd7 {[%clk 0:00:37.9]} 44. Qb7+ {[%clk
0:00:09.3]} 44... Kd8 {[%clk 0:00:37.7]} 45. Qxc6 {[%clk 0:00:08.8]} 45... Qxc6
{[%clk 0:00:34.5]} 46. Nd6 {[%clk 0:00:08.7]} 46... Be3+ {[%clk 0:00:33.5]} 47.
Kh2 {[%clk 0:00:09]} 47... Qc2 {[%clk 0:00:31.7]} 48. Nf7+ {[%clk 0:00:08.7]}
48... Ke7 {[%clk 0:00:31.3]} 49. Nd6 {[%clk 0:00:08.2]} 49... Qh7+ {[%clk
0:00:30.6]} 50. Kg3 {[%clk 0:00:08.2]} 50... Qg6+ {[%clk 0:00:29.8]} 51. Kf3
{[%clk 0:00:08.6]} 51... Bxd4 {[%clk 0:00:29.8]} 52. Ke2 {[%clk 0:00:07.1]}
52... Bxe5 {[%clk 0:00:29.4]} 0-1

[Event "*** SCC Grand Prix: Titled Tuesday Blitz"]
[Site "Chess.com"]
[Date "2020.07.07"]
[Round "5"]
[White "albi1999"]
[Black "AlexOstrovskiy"]
[Result "1-0"]
[WhiteElo "2488"]
[BlackElo "2651"]
[TimeControl "180+1"]
[EndTime "10:56:08 PDT"]
[Termination "albi1999 won by resignation"]

1. d4 {[%clk 0:03:00.9]} 1... e6 {[%clk 0:02:57]} 2. c4 {[%clk 0:03:00.3]} 2...
b6 {[%clk 0:02:55.8]} 3. e4 {[%clk 0:02:59.9]} 3... Bb4+ {[%clk 0:02:54.2]} 4.
Bd2 {[%clk 0:02:59.1]} 4... Bxd2+ {[%clk 0:02:54]} 5. Qxd2 {[%clk 0:02:59.5]}
5... d5 {[%clk 0:02:53.9]} 6. cxd5 {[%clk 0:02:57.2]} 6... exd5 {[%clk
0:02:54.8]} 7. e5 {[%clk 0:02:58.1]} 7... Ne7 {[%clk 0:02:51]} 8. Nc3 {[%clk
0:02:57.2]} 8... O-O {[%clk 0:02:49.7]} 9. f4 {[%clk 0:02:47.5]} 9... c5 {[%clk
0:02:49.3]} 10. Nf3 {[%clk 0:02:46.3]} 10... Nbc6 {[%clk 0:02:40.4]} 11. Be2
{[%clk 0:02:42.7]} 11... Bg4 {[%clk 0:02:26.8]} 12. dxc5 {[%clk 0:02:41]} 12...
bxc5 {[%clk 0:02:26]} 13. O-O {[%clk 0:02:40.2]} 13... d4 {[%clk 0:02:12.8]} 14.
Ne4 {[%clk 0:02:39.5]} 14... Qd5 {[%clk 0:02:13.5]} 15. Nf2 {[%clk 0:02:33.8]}
15... Be6 {[%clk 0:02:04.4]} 16. b3 {[%clk 0:02:25.2]} 16... Nf5 {[%clk
0:02:03]} 17. Rfc1 {[%clk 0:02:15.5]} 17... Ne3 {[%clk 0:01:47.6]} 18. Nd1
{[%clk 0:02:15.4]} 18... Nxd1 {[%clk 0:01:31.7]} 19. Rxd1 {[%clk 0:02:15.4]}
19... Ne7 {[%clk 0:01:29.4]} 20. Ng5 {[%clk 0:02:10.3]} 20... Bf5 {[%clk
0:01:17.1]} 21. Bf3 {[%clk 0:02:08.1]} 21... Qd7 {[%clk 0:01:13.3]} 22. Bxa8
{[%clk 0:02:05.9]} 22... Rxa8 {[%clk 0:01:14.2]} 23. Rac1 {[%clk 0:02:06.4]}
23... Rc8 {[%clk 0:01:09.1]} 24. b4 {[%clk 0:02:00.3]} 24... d3 {[%clk
0:00:58.8]} 25. bxc5 {[%clk 0:01:56.7]} 25... Qd4+ {[%clk 0:00:47]} 26. Qf2
{[%clk 0:01:52.3]} 26... Qa4 {[%clk 0:00:46.3]} 27. h3 {[%clk 0:01:28.2]} 27...
h6 {[%clk 0:00:46]} 28. Nf3 {[%clk 0:01:22.7]} 28... Qxf4 {[%clk 0:00:46.1]} 29.
Qd4 {[%clk 0:01:21.3]} 29... Qg3 {[%clk 0:00:44]} 30. Rxd3 {[%clk 0:01:13]}
30... Bxd3 {[%clk 0:00:43.3]} 31. Qxd3 {[%clk 0:01:13.9]} 31... Ng6 {[%clk
0:00:35.1]} 32. Qd7 {[%clk 0:01:07]} 32... Rb8 {[%clk 0:00:16.6]} 33. Qg4 {[%clk
0:01:01.2]} 33... Qxg4 {[%clk 0:00:16.6]} 34. hxg4 {[%clk 0:01:02.1]} 34... Rc8
{[%clk 0:00:12.9]} 35. c6 {[%clk 0:01:00.7]} 35... Kf8 {[%clk 0:00:12.8]} 36.
Kf2 {[%clk 0:00:59.7]} 36... Ke7 {[%clk 0:00:13]} 37. Ke3 {[%clk 0:01:00.2]}
37... Ke6 {[%clk 0:00:11.9]} 38. Ke4 {[%clk 0:01:00.6]} 38... Rc7 {[%clk
0:00:06.1]} 39. Nd4+ {[%clk 0:01:00.5]} 39... Ke7 {[%clk 0:00:06.4]} 40. Nb5
{[%clk 0:00:59.6]} 40... Rc8 {[%clk 0:00:06.7]} 41. Nxa7 {[%clk 0:00:59.6]}
41... Rc7 {[%clk 0:00:07.1]} 42. Nb5 {[%clk 0:00:59.7]} 42... Rc8 {[%clk
0:00:07.6]} 43. a4 {[%clk 0:00:56.6]} 43... Nf8 {[%clk 0:00:06.9]} 44. Nd6
{[%clk 0:00:46.2]} 44... Rc7 {[%clk 0:00:06.8]} 45. Nf5+ {[%clk 0:00:46.7]}
45... Kd8 {[%clk 0:00:06.2]} 46. Nxg7 {[%clk 0:00:45.2]} 46... Ra7 {[%clk
0:00:06.5]} 47. Rc4 {[%clk 0:00:40.6]} 47... Ng6 {[%clk 0:00:06.2]} 48. Nf5
{[%clk 0:00:38]} 48... Kc7 {[%clk 0:00:06.3]} 49. Nd4 {[%clk 0:00:37.7]} 49...
Ra8 {[%clk 0:00:03.3]} 50. Nb5+ {[%clk 0:00:37.9]} 50... Kb6 {[%clk 0:00:02.2]}
51. c7 {[%clk 0:00:38.1]} 51... Ne7 {[%clk 0:00:02.4]} 52. Nd6 {[%clk
0:00:36.5]} 52... Nc8 {[%clk 0:00:01.2]} 53. Nxc8+ {[%clk 0:00:36.8]} 53... Rxc8
{[%clk 0:00:02.1]} 54. Kf5 {[%clk 0:00:37.7]} 1-0

[Event "*** SCC Grand Prix: Titled Tuesday Blitz"]
[Site "Chess.com"]
[Date "2020.07.07"]
[Round "5"]
[White "Durarbayli"]
[Black "Onegust"]
[Result "1-0"]
[WhiteElo "2804"]
[BlackElo "2607"]
[TimeControl "180+1"]
[EndTime "10:56:09 PDT"]
[Termination "Durarbayli won by resignation"]

1. e4 {[%clk 0:03:00.9]} 1... c5 {[%clk 0:02:59.9]} 2. b3 {[%clk 0:03:00.7]}
2... Nf6 {[%clk 0:02:24.6]} 3. e5 {[%clk 0:02:59.7]} 3... Nd5 {[%clk 0:02:24.9]}
4. Nc3 {[%clk 0:02:59.5]} 4... Nxc3 {[%clk 0:02:14.2]} 5. dxc3 {[%clk
0:03:00.4]} 5... Nc6 {[%clk 0:02:10.6]} 6. Nf3 {[%clk 0:03:00.2]} 6... g6 {[%clk
0:02:01.7]} 7. Bc4 {[%clk 0:03:00]} 7... Bg7 {[%clk 0:01:59.5]} 8. Qd5 {[%clk
0:02:59.2]} 8... O-O {[%clk 0:01:52.6]} 9. O-O {[%clk 0:02:04.6]} 9... b6 {[%clk
0:01:51.8]} 10. Bf4 {[%clk 0:02:00.3]} 10... Bb7 {[%clk 0:01:50.2]} 11. Rad1
{[%clk 0:01:54.5]} 11... Na5 {[%clk 0:01:22.5]} 12. Qxd7 {[%clk 0:01:53.9]}
12... Qxd7 {[%clk 0:01:22.6]} 13. Rxd7 {[%clk 0:01:54.8]} 13... Bxf3 {[%clk
0:01:21]} 14. gxf3 {[%clk 0:01:55.2]} 14... Nxc4 {[%clk 0:01:20.5]} 15. bxc4
{[%clk 0:01:56.1]} 15... f6 {[%clk 0:01:11.1]} 16. e6 {[%clk 0:01:50]} 16...
Rfe8 {[%clk 0:01:07.9]} 17. Rfd1 {[%clk 0:01:38.6]} 17... f5 {[%clk 0:01:07.9]}
18. Bg5 {[%clk 0:01:37]} 18... Kf8 {[%clk 0:01:04.6]} 19. R1d3 {[%clk
0:01:23.3]} 19... h6 {[%clk 0:00:57.8]} 20. Bd2 {[%clk 0:01:17.2]} 20... g5
{[%clk 0:00:49.6]} 21. f4 {[%clk 0:01:14.9]} 21... g4 {[%clk 0:00:49.6]} 22.
R3d5 {[%clk 0:01:13.6]} 22... Bf6 {[%clk 0:00:46.5]} 23. Rxf5 {[%clk 0:01:13.5]}
23... Kg7 {[%clk 0:00:46.9]} 24. Rfd5 {[%clk 0:01:13.3]} 24... Reb8 {[%clk
0:00:32.3]} 25. a4 {[%clk 0:01:09.9]} 25... a6 {[%clk 0:00:32.1]} 26. Kg2 {[%clk
0:00:58.9]} 26... b5 {[%clk 0:00:27.7]} 27. a5 {[%clk 0:00:48.9]} 27... bxc4
{[%clk 0:00:25.7]} 28. Rxc5 {[%clk 0:00:46.8]} 28... Rb2 {[%clk 0:00:25.7]} 29.
Rxc4 {[%clk 0:00:45.7]} 29... Rxc2 {[%clk 0:00:25.6]} 30. Be3 {[%clk 0:00:44.2]}
30... h5 {[%clk 0:00:24]} 31. f5 {[%clk 0:00:37]} 31... Rb8 {[%clk 0:00:15.8]}
32. Bb6 {[%clk 0:00:36.8]} 32... Kh6 {[%clk 0:00:09.7]} 33. h3 {[%clk
0:00:28.5]} 33... Kg5 {[%clk 0:00:06.8]} 34. hxg4 {[%clk 0:00:27.9]} 34... hxg4
{[%clk 0:00:07.7]} 35. Rd5 {[%clk 0:00:28.3]} 35... Rh8 {[%clk 0:00:03.7]} 36.
Be3+ {[%clk 0:00:27.5]} 36... Kh5 {[%clk 0:00:04.1]} 37. Rd1 {[%clk 0:00:26.6]}
37... Rc8 {[%clk 0:00:02.7]} 38. Rxc8 {[%clk 0:00:22.8]} 1-0